fUST/lending_fUST_20250820
["ID","MTS","AMOUNT","RATE_DAILY","PERIOD"]
[380237877,1755622251631,-480.0,0.0002,2]
[380237878,1755622251640,-287.87349595,0.0002,2]
[380237879,1755622251649,-151.0,0.0002,2]
[380237880,1755622251659,-151.0,0.0002,2]
[380237881,1755622251667,-480.0,0.0002,2]
[380237882,1755622251677,-151.0,0.0002,2]
[380237883,1755622251685,-480.0,0.0002,2]
[380237884,1755622251694,-480.0,0.0002,2]
[380237885,1755622251704,-460.0,0.0002,2]
[380237886,1755622251714,-480.0,0.0002,2]
[380237887,1755622251724,-480.0,0.0002,2]
[380237888,1755622251733,-475.96386539,0.0002,2]
[380237889,1755622251742,-480.0,0.0002,2]
[380237890,1755622251752,-480.0,0.0002,2]
[380237891,1755622251761,-989.73,0.0002,2]
[380237892,1755622251770,-167.803922,0.0002,2]
[380237893,1755622251779,-151.0,0.0002,2]
[380237894,1755622251789,-151.0,0.0002,2]
[380237895,1755622251798,-151.0,0.0002,2]
[380237896,1755622251807,-151.0,0.0002,2]
[380237897,1755622251816,-151.0,0.0002,2]
[380237898,1755622251825,-151.0,0.0002,2]
[380237899,1755622251835,-151.0,0.0002,2]
[380237900,1755622251844,-480.0,0.0002,2]
[380237901,1755622251853,-151.0,0.0002,2]
[380237902,1755622251862,-206.21494,0.0002,2]
[380237903,1755622251871,-467.83395752,0.0002,2]
[380237904,1755622251880,-151.0,0.0002,2]
[380237905,1755622251889,-151.0,0.0002,2]
[380237906,1755622251899,-151.0,0.0002,2]
[380237907,1755622251908,-151.0,0.0002,2]
[380237908,1755622251918,-151.0,0.0002,2]
[380237909,1755622251929,-212.68491099,0.0002,2]
[380237910,1755622251939,-151.0,0.0002,2]
[380237911,1755622251948,-460.0,0.0002,2]
[380237912,1755622251958,-480.0,0.0002,2]
[380237913,1755622251968,-820.05,0.0002,2]
[380237914,1755622251979,-665.88,0.0002,2]
[380237915,1755622251989,-186.594858,0.0002,2]
[380237916,1755622251998,-186.594858,0.0002,2]
[380237917,1755622252008,-186.594858,0.0002,2]
[380237918,1755622252018,-186.594858,0.0002,2]
[380237919,1755622252027,-480.0,0.0002,2]
[380237920,1755622252035,-1385.41,0.0002,2]
[380237921,1755622252044,-151.0,0.0002,2]
[380237922,1755622252053,-151.0,0.0002,2]
[380237923,1755622252062,-480.0,0.0002,2]
[380237924,1755622252072,-480.0,0.0002,2]
[380237925,1755622252081,-258.097144,0.0002,2]
[380237926,1755622252090,-685.48,0.0002,2]
[380237927,1755622252100,-151.0,0.0002,2]
[380237928,1755622252109,-480.0,0.0002,2]
[380237929,1755622252118,-151.0,0.0002,2]
[380237930,1755622252127,-1090.94,0.0002,2]
[380237931,1755622252136,-480.0,0.0002,2]
[380237932,1755622252145,-480.0,0.0002,2]
[380237933,1755622252154,-480.0,0.0002,2]
[380237934,1755622252163,-480.0,0.0002,2]
[380237935,1755622252172,-151.0,0.0002,2]
[380237936,1755622252181,-480.0,0.0002,2]
[380237937,1755622252190,-193.259615,0.0002,2]
[380237938,1755622252199,-151.0,0.0002,2]
[380237939,1755622252210,-480.0,0.0002,2]
[380237940,1755622252219,-899.76,0.0002,2]
[380237941,1755622252319,-612.50321559,0.0002,2]
[380237942,1755622252340,-151.0,0.0002,2]
[380237943,1755622252350,-1040.67,0.0002,2]
[380237944,1755622252359,-151.0,0.0002,2]
[380237945,1755622252368,-480.0,0.0002,2]
[380237946,1755622252378,-480.0,0.0002,2]
[380237947,1755622252387,-151.0,0.0002,2]
[380237948,1755622252397,-480.0,0.0002,2]
[380237949,1755622252406,-151.0,0.0002,2]
[380237950,1755622252415,-551.40395806,0.0002,2]
[380237951,1755622252424,-496.36,0.0002,2]
[380237952,1755622252433,-151.0,0.0002,2]
[380237953,1755622252443,-151.0,0.0002,2]
[380237954,1755622252452,-480.0,0.0002,2]
[380237955,1755622252463,-480.0,0.0002,2]
[380237956,1755622252472,-480.0,0.0002,2]
[380237957,1755622252482,-748.34,0.0002,2]
[380237958,1755622252491,-480.0,0.0002,2]
[380237959,1755622252501,-480.0,0.0002,2]
[380237960,1755622252510,-152.74143824,0.0002,2]
[380237961,1755622252519,-480.0,0.0002,2]
[380237962,1755622252529,-480.0,0.0002,2]
[380237963,1755622252538,-358.082778,0.0002,2]
[380237964,1755622252548,-358.082778,0.0002,2]
[380237965,1755622252557,-480.0,0.0002,2]
[380237966,1755622252566,-390.93956601,0.0002,2]
[380237967,1755622252576,-358.082778,0.0002,2]
[380237968,1755622252585,-358.082778,0.0002,2]
[380237969,1755622252595,-615.91,0.0002,2]
[380237970,1755622252604,-480.0,0.0002,2]
[380237971,1755622252614,-480.0,0.0002,2]
[380237972,1755622252623,-480.0,0.0002,2]
[380237973,1755622252632,-973.55,0.0002,2]
[380237974,1755622252641,-440.0,0.0002,2]
[380237975,1755622252650,-480.0,0.0002,2]
[380237976,1755622252659,-480.0,0.0002,2]
[380237977,1755622252667,-480.0,0.0002,2]
[380237978,1755622252676,-480.0,0.0002,2]
[380237979,1755622252686,-480.0,0.0002,2]
[380237980,1755622252695,-151.0,0.0002,2]
[380237981,1755622252704,-151.0,0.0002,2]
[380237982,1755622252714,-151.0,0.0002,2]
[380237983,1755622252723,-480.0,0.0002,2]
[380237984,1755622252732,-151.0,0.0002,2]
[380237985,1755622252741,-561.23316046,0.0002,2]
[380237986,1755622252751,-151.0,0.0002,2]
[380237987,1755622252760,-480.0,0.0002,2]
[380237988,1755622252770,-151.0,0.0002,2]
[380237989,1755622252779,-480.0,0.0002,2]
[380237990,1755622252788,-477.12169177,0.0002,2]
[380237991,1755622252797,-3502.95,0.0002,2]
[380237992,1755622252806,-2118.85,0.0002,2]
[380237993,1755622252814,-480.0,0.0002,2]
[380237994,1755622252824,-480.0,0.0002,2]
[380237995,1755622252833,-480.0,0.0002,2]
[380237996,1755622252842,-151.0,0.0002,2]
[380237997,1755622252851,-480.0,0.0002,2]
[380237998,1755622252860,-151.0,0.0002,2]
[380237999,1755622252869,-480.0,0.0002,2]
[380238000,1755622252879,-151.0,0.0002,2]
[380238001,1755622252888,-151.0,0.0002,2]
[380238002,1755622252897,-480.0,0.0002,2]
[380238003,1755622252907,-480.0,0.0002,2]
[380238004,1755622252916,-151.0,0.0002,2]
[380238005,1755622252925,-151.0,0.0002,2]
[380238006,1755622252939,-267.756297,0.0002,2]
[380238007,1755622252948,-1200.84,0.0002,2]
[380238008,1755622252958,-151.0,0.0002,2]
[380238009,1755622252967,-577.5,0.0002,2]
[380238010,1755622252977,-151.0,0.0002,2]
[380238011,1755622252987,-480.0,0.0002,2]
[380238012,1755622252996,-675.63,0.0002,2]
[380238013,1755622253006,-535.82,0.0002,2]
[380238014,1755622253015,-480.0,0.0002,2]
[380238015,1755622253026,-480.0,0.0002,2]
[380238016,1755622253036,-480.0,0.0002,2]
[380238017,1755622253045,-480.0,0.0002,2]
[380238018,1755622253054,-1462.46,0.0002,2]
[380238019,1755622253063,-480.0,0.0002,2]
[380238020,1755622253072,-480.0,0.0002,2]
[380238021,1755622253082,-958.15,0.0002,2]
[380238022,1755622253092,-480.0,0.0002,2]
[380238023,1755622253101,-684.55,0.0002,2]
[380238024,1755622253111,-480.0,0.0002,2]
[380238025,1755622253120,-480.0,0.0002,2]
[380238026,1755622253130,-151.0,0.0002,2]
[380238027,1755622253139,-809.37,0.0002,2]
[380238028,1755622253149,-151.0,0.0002,2]
[380238029,1755622253158,-480.0,0.0002,2]
[380238030,1755622253168,-822.15,0.0002,2]
[380238031,1755622253177,-151.0,0.0002,2]
[380238032,1755622253186,-151.0,0.0002,2]
[380238033,1755622253195,-480.0,0.0002,2]
[380238034,1755622253204,-480.0,0.0002,2]
[380238035,1755622253216,-480.0,0.0002,2]
[380238036,1755622253224,-190.220216,0.0002,2]
[380238037,1755622253234,-480.0,0.0002,2]
[380238038,1755622253243,-485.73,0.0002,2]
[380238039,1755622253251,-1876.86,0.0002,2]
[380238040,1755622253260,-480.0,0.0002,2]
[380238041,1755622253270,-480.0,0.0002,2]
[380238042,1755622253279,-152.927246,0.0002,2]
[380238043,1755622253288,-594.43,0.0002,2]
[380238044,1755622253297,-480.0,0.0002,2]
[380238045,1755622253306,-2779.77,0.0002,2]
[380238046,1755622253316,-480.0,0.0002,2]
[380238047,1755622253325,-151.0,0.0002,2]
[380238048,1755622253334,-635.9,0.0002,2]
[380238049,1755622253343,-480.0,0.0002,2]
[380238050,1755622253352,-151.0,0.0002,2]
[380238051,1755622253361,-2697.84,0.0002,2]
[380238052,1755622253370,-151.0,0.0002,2]
[380238053,1755622253379,-480.0,0.0002,2]
[380238054,1755622253388,-151.0,0.0002,2]
[380238055,1755622253398,-480.0,0.0002,2]
[380238056,1755622253407,-153.74909,0.0002,2]
[380238057,1755622253416,-480.0,0.0002,2]
[380238058,1755622253425,-160.0,0.0002,3]
[380238059,1755622253435,-960.0,0.0002,2]
[380238060,1755622253444,-2946.82,0.0002,2]
[380238061,1755622253453,-151.0,0.0002,2]
[380238062,1755622253464,-810.05,0.0002,2]
[380238063,1755622253473,-480.0,0.0002,2]
[380238064,1755622253481,-480.0,0.0002,2]
[380238065,1755622253490,-433.96413412,0.0002,2]
[380238066,1755622253500,-1509.61,0.0002,2]
[380238067,1755622253509,-480.0,0.0002,2]
[380238068,1755622253518,-2422.45,0.0002,2]
[380238069,1755622253527,-480.0,0.0002,2]
[380238070,1755622253536,-1082.62,0.0002,2]
[380238071,1755622253545,-272.32957479,0.0002,2]
[380238072,1755622253554,-480.0,0.0002,2]
[380238073,1755622253563,-480.0,0.0002,2]
[380238074,1755622253572,-549.23594176,0.0002,2]
[380238075,1755622253581,-516.51,0.0002,2]
[380238076,1755622253590,-480.0,0.0002,2]
[380238077,1755622253600,-480.0,0.0002,2]
[380238078,1755622253609,-480.0,0.0002,2]
[380238079,1755622253618,-480.0,0.0002,2]
[380238080,1755622253626,-151.0,0.0002,2]
[380238081,1755622253635,-480.0,0.0002,2]
[380238082,1755622253644,-480.0,0.0002,2]
[380238083,1755622253653,-480.0,0.0002,2]
[380238084,1755622253662,-480.0,0.0002,2]
[380238085,1755622253671,-480.0,0.0002,2]
[380238086,1755622253680,-480.0,0.0002,2]
[380238087,1755622253689,-151.0,0.0002,2]
[380238088,1755622253698,-2620.55,0.0002,2]
[380238089,1755622253708,-151.0,0.0002,2]
[380238090,1755622253717,-151.0,0.0002,2]
[380238091,1755622253726,-480.0,0.0002,2]
[380238092,1755622253734,-480.0,0.0002,2]
[380238093,1755622253743,-157.82445,0.0002,2]
[380238094,1755622253753,-480.0,0.0002,2]
[380238095,1755622253762,-157.82445,0.0002,2]
[380238096,1755622253771,-604.32,0.0002,2]
[380238097,1755622253780,-157.82445,0.0002,2]
[380238098,1755622253789,-480.0,0.0002,2]
[380238099,1755622253798,-157.82445,0.0002,2]
[380238100,1755622253808,-846.8,0.0002,2]
[380238101,1755622253817,-193.70704487,0.0002,2]
[380238102,1755622253827,-151.0,0.0002,2]
[380238103,1755622253836,-409.803287,0.0002,2]
[380238104,1755622253845,-151.0,0.0002,2]
[380238105,1755622253855,-480.0,0.0002,2]
[380238106,1755622253864,-409.803287,0.0002,2]
[380238107,1755622253873,-480.0,0.0002,2]
[380238108,1755622253882,-409.803287,0.0002,2]
[380238109,1755622253891,-663.09,0.0002,2]
[380238110,1755622253901,-409.803287,0.0002,2]
[380238111,1755622253911,-151.0,0.0002,2]
[380238112,1755622253920,-151.0,0.0002,2]
[380238113,1755622253932,-351.06548748,0.0002,2]
[380238114,1755622253941,-480.0,0.0002,2]
[380238115,1755622253952,-519.86,0.0002,2]
[380238116,1755622253962,-480.0,0.0002,2]
[380238117,1755622253971,-480.0,0.0002,2]
[380238118,1755622253981,-480.0,0.0002,2]
[380238119,1755622253990,-480.0,0.0002,2]
[380238120,1755622253999,-480.0,0.0002,2]
[380238121,1755622254009,-705.07,0.0002,2]
[380238122,1755622254018,-2167.0,0.0002,2]
[380238123,1755622254030,-480.0,0.0002,2]
[380238124,1755622254040,-7328.71,0.0002,2]
[380238125,1755622254050,-480.0,0.0002,2]
[380238126,1755622254060,-195.95233093,0.0002,2]
[380238127,1755622254070,-538.37,0.0002,2]
[380238128,1755622254079,-480.0,0.0002,2]
[380238129,1755622254088,-480.0,0.0002,2]
[380238130,1755622254097,-151.0,0.0002,2]
[380238131,1755622254106,-362.03828615,0.0002,2]
[380238132,1755622254116,-590.33,0.0002,2]
[380238133,1755622254126,-151.402041,0.0002,2]
[380238134,1755622254135,-480.0,0.0002,2]
[380238135,1755622254144,-480.0,0.0002,2]
[380238136,1755622254154,-151.0,0.0002,2]
[380238137,1755622254163,-480.0,0.0002,2]
[380238138,1755622254172,-3159.53,0.0002,2]
[380238139,1755622254181,-151.0,0.0002,2]
[380238140,1755622254190,-1462.93516947,0.0002002,2]
[380238141,1755622254199,-356.721377,0.00020187,2]
[380238142,1755622254209,-528.6845513,0.00020273,2]
[380238143,1755622254218,-160.0,0.00020273,2]
[380238144,1755622254227,-160.0,0.00020273,2]
[380238145,1755622254237,-232.21311493,0.00020273,2]
[380238146,1755622254246,-417.15472785,0.00020273,2]
[380238147,1755622254255,-160.0,0.00020273,2]
[380238148,1755622254264,-160.0,0.00020273,2]
[380238149,1755622254371,-160.0,0.00020273,2]
[380238150,1755622254381,-375.88899365,0.00020273,2]
[380238151,1755622254390,-216.8835046,0.00020273,2]
[380238152,1755622254400,-215.79176414,0.00020273,2]
[380238153,1755622254409,-160.0,0.00020273,2]
[380238154,1755622254418,-160.0,0.00020273,2]
[380238155,1755622254428,-843.93972674,0.00020273,2]
[380238156,1755622254437,-12685.85563623,0.00020273,2]
[380238157,1755622254446,-430.14023818,0.00020273,2]
[380238158,1755622254455,-480.0,0.00020273,2]
[380238159,1755622254465,-482.49951752,0.00020273,2]
[380238160,1755622254474,-480.0,0.00020273,2]
[380238161,1755622254484,-6998.28,0.00020273,2]
[380238162,1755622254493,-480.0,0.00020273,2]
[380238163,1755622254502,-480.0,0.00020273,2]
[380238164,1755622254511,-480.0,0.00020273,2]
[380238165,1755622254520,-966.56,0.00020273,2]
[380238166,1755622254529,-480.0,0.00020273,2]
[380238167,1755622254539,-443.29717523,0.00020273,2]
[380238168,1755622254548,-480.0,0.00020273,2]
[380238169,1755622254558,-480.0,0.00020273,2]
[380238170,1755622254567,-480.0,0.00020273,2]
[380238171,1755622254576,-480.0,0.00020273,2]
[380238172,1755622254586,-480.0,0.00020273,2]
[380238173,1755622254595,-480.0,0.00020273,2]
[380238174,1755622254605,-443.66953913,0.00020273,2]
[380238175,1755622254614,-480.0,0.00020273,2]
[380238176,1755622254624,-480.0,0.00020273,2]
[380238177,1755622254634,-480.0,0.00020273,2]
[380238178,1755622254643,-480.0,0.00020273,2]
[380238179,1755622254652,-665.71,0.00020273,2]
[380238180,1755622254662,-480.0,0.00020273,2]
[380238181,1755622254671,-480.0,0.00020273,2]
[380238182,1755622254681,-480.0,0.00020273,2]
[380238183,1755622254690,-4077.21,0.00020273,2]
[380238184,1755622254699,-1099.69,0.00020273,2]
[380238185,1755622254709,-480.0,0.00020273,2]
[380238186,1755622254719,-480.0,0.00020273,2]
[380238187,1755622254729,-480.0,0.00020273,2]
[380238188,1755622254738,-178.333883,0.00020273,2]
[380238189,1755622254747,-480.0,0.00020273,2]
[380238190,1755622254757,-480.0,0.00020273,2]
[380238191,1755622254767,-480.0,0.00020273,2]
[380238192,1755622254776,-530.28,0.00020273,2]
[380238193,1755622254785,-480.0,0.00020273,2]
[380238194,1755622254795,-480.0,0.00020273,2]
[380238195,1755622254804,-480.0,0.00020273,2]
[380238196,1755622254814,-614.03249092,0.00020273,2]
[380238197,1755622254824,-480.0,0.00020273,2]
[380238198,1755622254834,-191.97654889,0.00020273,2]
[380238199,1755622254844,-480.0,0.00020273,2]
[380238200,1755622254853,-480.0,0.00020273,2]
[380238201,1755622254863,-480.0,0.00020273,2]
[380238202,1755622254873,-989.73,0.00020273,2]
[380238203,1755622254882,-480.0,0.00020273,2]
[380238204,1755622254891,-480.0,0.00020273,2]
[380238205,1755622254902,-820.05,0.00020273,2]
[380238206,1755622254911,-665.88,0.00020273,2]
[380238207,1755622254921,-480.0,0.00020273,2]
[380238208,1755622254932,-1385.41,0.00020273,2]
[380238209,1755622254942,-480.0,0.00020273,2]
[380238210,1755622254951,-480.0,0.00020273,2]
[380238211,1755622254962,-685.48,0.00020273,2]
[380238212,1755622254972,-325.50678981,0.00020273,2]
[380238213,1755622254982,-1090.94,0.00020273,2]
[380238214,1755622254992,-480.0,0.00020273,2]
[380238215,1755622255001,-464.84837285,0.00020273,2]
[380238216,1755622255011,-480.0,0.00020273,2]
[380238217,1755622255020,-480.0,0.00020273,2]
[380238218,1755622255030,-480.0,0.00020273,2]
[380238219,1755622255039,-899.76,0.00020273,2]
[380238220,1755622255049,-1040.67,0.00020273,2]
[380238221,1755622255058,-480.0,0.00020273,2]
[380238222,1755622255068,-480.0,0.00020273,2]
[380238223,1755622255077,-480.0,0.00020273,2]
[380238224,1755622255087,-496.36,0.00020273,2]
[380238225,1755622255096,-480.0,0.00020273,2]
[380238226,1755622255105,-480.0,0.00020273,2]
[380238227,1755622255115,-480.0,0.00020273,2]
[380238228,1755622255125,-748.34,0.00020273,2]
[380238229,1755622255134,-480.0,0.00020273,2]
[380238230,1755622255143,-480.0,0.00020273,2]
[380238231,1755622255152,-480.0,0.00020273,2]
[380238232,1755622255162,-480.0,0.00020273,2]
[380238233,1755622255171,-615.91,0.00020273,2]
[380238234,1755622255180,-480.0,0.00020273,2]
[380238235,1755622255189,-480.0,0.00020273,2]
[380238236,1755622255199,-480.0,0.00020273,2]
[380238237,1755622255210,-973.55,0.00020273,2]
[380238238,1755622255219,-480.0,0.00020273,2]
[380238239,1755622255229,-480.0,0.00020273,2]
[380238240,1755622255238,-480.0,0.00020273,2]
[380238241,1755622255248,-480.0,0.00020273,2]
[380238242,1755622255257,-480.0,0.00020273,2]
[380238243,1755622255267,-480.0,0.00020273,2]
[380238244,1755622255277,-480.0,0.00020273,2]
[380238245,1755622255286,-480.0,0.00020273,2]
[380238246,1755622255296,-3502.95,0.00020273,2]
[380238247,1755622255306,-2118.85,0.00020273,2]
[380238248,1755622255315,-480.0,0.00020273,2]
[380238249,1755622255325,-480.0,0.00020273,2]
[380238250,1755622255335,-480.0,0.00020273,2]
[380238251,1755622255344,-480.0,0.00020273,2]
[380238252,1755622255354,-480.0,0.00020273,2]
[380238253,1755622255363,-463.57777023,0.00020273,2]
[380238254,1755622255372,-1200.84,0.00020273,2]
[380238255,1755622255382,-577.5,0.00020273,2]
[380238256,1755622255391,-675.63,0.00020273,2]
[380238257,1755622255401,-535.82,0.00020273,2]
[380238258,1755622255410,-480.0,0.00020273,2]
[380238259,1755622255420,-480.0,0.00020273,2]
[380238260,1755622255428,-460.0,0.00020273,2]
[380238261,1755622255438,-480.0,0.00020273,2]
[380238262,1755622255447,-1462.46,0.00020273,2]
[380238263,1755622255457,-480.0,0.00020273,2]
[380238264,1755622255468,-562.98,0.00020273,2]
[380238265,1755622255477,-958.15,0.00020273,2]
[380238266,1755622255486,-480.0,0.00020273,2]
[380238267,1755622255495,-684.55,0.00020273,2]
[380238268,1755622255504,-480.0,0.00020273,2]
[380238269,1755622255513,-809.37,0.00020273,2]
[380238270,1755622255522,-480.0,0.00020273,2]
[380238271,1755622255532,-822.15,0.00020273,2]
[380238272,1755622255541,-480.0,0.00020273,2]
[380238273,1755622255550,-480.0,0.00020273,2]
[380238274,1755622255560,-532.20122534,0.00020273,2]
[380238275,1755622255569,-480.0,0.00020273,2]
[380238276,1755622255579,-485.73,0.00020273,2]
[380238277,1755622255588,-1876.86,0.00020273,2]
[380238278,1755622255597,-480.0,0.00020273,2]
[380238279,1755622255606,-480.0,0.00020273,2]
[380238280,1755622255616,-594.43,0.00020273,2]
[380238281,1755622255626,-2779.77,0.00020273,2]
[380238282,1755622255635,-480.0,0.00020273,2]
[380238283,1755622255644,-480.0,0.00020273,2]
[380238284,1755622255653,-635.9,0.00020273,2]
[380238285,1755622255663,-480.0,0.00020273,2]
[380238286,1755622255672,-2697.84,0.00020273,2]
[380238287,1755622255682,-480.0,0.00020273,2]
[380238288,1755622255691,-480.0,0.00020273,2]
[380238289,1755622255700,-480.0,0.00020273,2]
[380238290,1755622255710,-2946.82,0.00020273,2]
[380238291,1755622255719,-810.05,0.00020273,2]
[380238292,1755622255729,-480.0,0.00020273,2]
[380238293,1755622255738,-480.0,0.00020273,2]
[380238294,1755622255748,-1509.61,0.00020273,2]
[380238295,1755622255757,-480.0,0.00020273,2]
[380238296,1755622255766,-2422.45,0.00020273,2]
[380238297,1755622255775,-270.43514062,0.00020273,2]
[380238298,1755622255784,-1082.62,0.00020273,2]
[380238299,1755622255794,-480.0,0.00020273,2]
[380238300,1755622255803,-480.0,0.00020273,2]
[380238301,1755622255811,-516.51,0.00020273,2]
[380238302,1755622255820,-480.0,0.00020273,2]
[380238303,1755622255829,-480.0,0.00020273,2]
[380238304,1755622255839,-480.0,0.00020273,2]
[380238305,1755622255848,-480.0,0.00020273,2]
[380238306,1755622255857,-480.0,0.00020273,2]
[380238307,1755622255866,-480.0,0.00020273,2]
[380238308,1755622255876,-480.0,0.00020273,2]
[380238309,1755622255885,-480.0,0.00020273,2]
[380238310,1755622255894,-480.0,0.00020273,2]
[380238311,1755622255903,-151.0,0.00020273,2]
[380238312,1755622255912,-2620.55,0.00020273,2]
[380238313,1755622255922,-151.0,0.00020273,2]
[380238314,1755622255933,-151.0,0.00020273,2]
[380238315,1755622255944,-580.32366311,0.00020273,2]
[380238316,1755622255953,-480.0,0.00020273,2]
[380238317,1755622255964,-480.0,0.00020273,2]
[380238318,1755622255973,-604.32,0.00020273,2]
[380238319,1755622255983,-480.0,0.00020273,2]
[380238320,1755622255992,-846.8,0.00020273,2]
[380238321,1755622256002,-151.0,0.00020273,2]
[380238322,1755622256014,-409.803287,0.00020273,2]
[380238323,1755622256023,-151.0,0.00020273,2]
[380238324,1755622256032,-480.0,0.00020273,2]
[380238325,1755622256041,-409.803287,0.00020273,2]
[380238326,1755622256050,-480.0,0.00020273,2]
[380238327,1755622256059,-409.803287,0.00020273,2]
[380238328,1755622256068,-663.09,0.00020273,2]
[380238329,1755622256077,-409.803287,0.00020273,2]
[380238330,1755622256087,-151.0,0.00020273,2]
[380238331,1755622256095,-519.86,0.00020273,2]
[380238332,1755622256105,-480.0,0.00020273,2]
[380238333,1755622256114,-480.0,0.00020273,2]
[380238334,1755622256123,-480.0,0.00020273,2]
[380238335,1755622256133,-480.0,0.00020273,2]
[380238336,1755622256142,-480.0,0.00020273,2]
[380238337,1755622256151,-705.07,0.00020273,2]
[380238338,1755622256162,-2167.0,0.00020273,2]
[380238339,1755622256171,-480.0,0.00020273,2]
[380238340,1755622256266,-7328.71,0.00020273,2]
[380238341,1755622256284,-538.37,0.00020273,2]
[380238342,1755622256293,-480.0,0.00020273,2]
[380238343,1755622256303,-480.0,0.00020273,2]
[380238344,1755622256312,-151.0,0.00020273,2]
[380238345,1755622256321,-590.33,0.00020273,2]
[380238346,1755622256331,-606.56655517,0.00020273,2]
[380238347,1755622256340,-529.57327816,0.00020273,2]
[380238348,1755622256349,-151.0,0.00020273,2]
[380238349,1755622256358,-480.0,0.00020273,2]
[380238350,1755622256368,-231.048348,0.00020273,2]
[380238351,1755622256377,-3159.53,0.00020273,2]
[380238352,1755622256386,-160.0,0.00020274,2]
[380238353,1755622256395,-8087.18579842,0.00020313,2]
[380238354,1755622256404,-151.0,0.00020313,2]
[380238355,1755622256414,-151.0,0.00020313,2]
[380238356,1755622256423,-151.0,0.00020313,2]
[380238357,1755622256433,-151.0,0.00020313,2]
[380238358,1755622256442,-151.0,0.00020313,2]
[380238359,1755622256451,-5000.0,0.00020323,2]
[380238360,1755622256462,-260.0,0.00020467,2]
[380238361,1755622256471,-1000.0,0.00020521,2]
[380238362,1755622256480,-1000.0,0.00020521,2]
[380238363,1755622256489,-1000.0,0.00020521,2]
[380238364,1755622256499,-834.68504628,0.00020521,2]
[380238365,1755622256508,-1000.0,0.00020521,2]
[380238366,1755622256517,-1000.0,0.00020521,2]
[380238367,1755622256528,-1000.0,0.00020521,2]
[380238368,1755622256539,-1000.0,0.00020521,2]
[380238369,1755622256550,-151.0,0.00020521,2]
[380238370,1755622256559,-151.0,0.00020521,2]
[380238371,1755622256569,-151.0,0.00020521,2]
[380238372,1755622256578,-215.841832,0.00020521,2]
[380238373,1755622256587,-151.0,0.00020521,2]
[380238374,1755622256597,-151.0,0.00020521,2]
[380238375,1755622256607,-151.0,0.00020521,2]
[380238376,1755622256616,-151.0,0.00020521,2]